Workbook

Sheet Digikey
A1: Index | B1: Quantity | C1: Digi-Key Part Number | D1: Manufacturer Part Number | E1: Description | F1: Customer Reference | G1: Unit Price USD | H1: Extended Price USD | J1: Costs
A2: 1 | B2: =4*3 -> 12 | C2: 493-14498-ND | D2: UKL2A100KPD | E2: CAP ELEC 10uF 100V 10% RADIAL | F2: MRFS_C1,C3,C6,C8 | G2: 0.369 | H2: =G2*B2 -> 4.428 | J2: =SUM(H:H) -> 595.5556 | K2: Subtotal
A3: 2 | B3: 100 | C3: 490-4789-1-ND | D3: GCM21BR72A104KA37L | E3: CAP CER 0.1uF 100V 10% X7R 0805 | F3: MRFS_C2,C7,C9,C10,C26,C29,C35,C36,C37,C38,C42,C45,C47,C48,C49,C50,C51,C52,C53 | G3: 0.055 | H3: =G3*B3 -> 5.5 | J3: =J2*0.1025 -> 61.044449 | K3: Tax (Est)
A4: 3 | B4: =2*3 -> 6 | C4: P5314-ND | D4: ECA-2AM221 | E4: CAP ELEC 220uF 100V 20% RADIAL | F4: MRFS_C4,C5 | G4: 0.82 | H4: 4.92 | J4: =10 -> 10 | K4: Shipping
A5: 4 | B5: =1*3 -> 3 | C5: 399-13172-1-ND | D5: C0805F683K1RAC7800 | E5: CAP CER 0.068uF 100V 10% X7R 0805 | F5: MRFS_C11 | G5: 0.41 | H5: 1.23 | J5: =SUM(J2:J4) -> 666.600049 | K5: TOTAL
A6: 5 | B6: =4*3 -> 12 | C6: 493-1668-ND | D6: UHE2A101MPD | E6: CAP ELEC 100uF 100V 20% RADIAL | F6: MRFS_C12,C13,C14,C16 | G6: 0.415 | H6: 4.98
A7: 6 | B7: =1*3 -> 3 | C7: 493-1983-ND | D7: UPW2A331MHD | E7: CAP ELEC 330uF 100V 20% RADIAL | F7: MRFS_C15 | G7: 1.23 | H7: 3.69
A8: 7 | B8: =1*3 -> 3 | C8: 399-5112-1-ND | D8: C0805F474K3RACTU | E8: CAP CER 0.47uF 25V 10% X7R 0805 | F8: MRFS_C17 | G8: 0.5 | H8: 1.5
A9: 8 | B9: =1*3 -> 3 | C9: 399-8382-1-ND | D9: T491D336K025AT | E9: CAP TANT 33uF 25V 10% 2917 | F9: MRFS_C18 | G9: 1.57 | H9: 4.71
A10: 9 | B10: =10*3 -> 30 | C10: 490-14467-1-ND | D10: GRM21BR71E225KE11L | E10: CAP CER 2.2uF 25V 10% 0805 | F10: MRFS_C19,C20,C21,C22,C23,C24,C25,C33,C44,C46 | G10: 0.151 | H10: 4.53
A11: 10 | B11: =2*3 -> 6 | C11: 478-10197-1-ND | D11: 06031A250GAT2A | E11: CAP CER 25pF 100V 2% 0603 | F11: MRFS_C27,C28 | G11: 0.7 | H11: 4.2
A12: 11 | B12: =1*3 -> 3 | C12: 478-8719-1-ND | D12: 12061Z475MAT2A | E12: CAP CER 4.7uF 100V 20% 1206 | F12: MRFS_C30 | G12: 1.68 | H12: 5.04
A13: 12 | B13: =1*3 -> 3 | C13: 490-1658-1-ND | D13: GRM21BR72A223KA01L | E13: CAP CER 0.022uF 100V 10% X7R 0805 | F13: MRFS_C31 | G13: 0.23 | H13: 0.69
A14: 13 | B14: =2*3 -> 6 | C14: 311-1456-1-ND | D14: CC0805KKX7R8BB105 | E14: CAP CER 1uF 25V 10% X7R 0805 | F14: MRFS_C32,C34 | G14: 0.11 | H14: 0.66
A15: 14 | B15: =4*3 -> 12 | C15: 399-1147-1-ND | D15: C0805C102K5RACTU | E15: CAP CER 0.001uF 50V 10% X7R 0805 | F15: MRFS_C39,C40,C41,C43 | G15: 0.043 | H15: 0.516
A16: 15 | B16: =16*3 -> 48 | C16: 754-1946-1-ND | D16: APTD1608LSECK/J4-PF | E16: LED OR 2mA 1.8V 0603 | F16: MRFS_D1,D2,D5,D6,D7,D8,D9,D10,D14,D23,D26,D29,D30,D31,D32,D33 | G16: 0.3968 | H16: 19.0464
A17: 16 | B17: =2*3 -> 6 | C17: 754-1949-1-ND | D17: APTD1608LZGCK | E17: LED GN 2mA 2.65V 0603 | F17: MRFS_D3,D12 | G17: 0.68 | H17: 4.08
A18: 17 | B18: 10 | C18: 754-2032-1-ND | D18: APHD1608LSURCK | E18: LED RED 2mA 1.75V 0603 | F18: MRFS_D13,D15,D16 | G18: 0.302 | H18: 3.02
A19: 18 | B19: =1*3 -> 3 | C19: 754-2040-1-ND | D19: APTD1608LQBC/D | E19: LED BLUE 2mA 2.65V 0603 | F19: MRFS_D11 | G19: 0.64 | H19: 1.92
A20: 19 | B20: =1*3 -> 3 | C20: SS29-E3/52TGICT-ND | D20: SS29-E3/52T | E20: DIODE SCHOTTKY 90V 1.5A DO214AA | F20: MRFS_D4 | G20: 0.56 | H20: 1.68
A21: 20 | B21: =10*3 -> 30 | C21: 497-12278-1-ND | D21: STPS0540ZY | E21: Diode Schottky 40V 500mA Surface Mount SOD-123 | F21: MRFS_D17,D18,D19,D20,D21,D22,D24,D25,D27,D28 | G21: 0.371 | H21: 11.13
A22: 21 | B22: =1*3 -> 3 | C22: 277-1271-ND | D22: 1714971 | E22: CONN TERM BLOCK 2POS 9.52MM PCB | F22: MRFS_J1 | G22: 1.53 | H22: 4.59
A23: 22 | B23: =1*3 -> 3 | C23: BKCT2232-4-ND | D23: CT2232-4 | E23: 4MM BINDING POST - YELLOW | F23: MRFS_J2 | G23: 4.1 | H23: 12.3
A24: 23 | B24: =1*3 -> 3 | C24: BKCT2232-5-ND | D24: CT2232-5 | E24: 4MM BINDING POST - GREEN | F24: MRFS_J3 | G24: 4.1 | H24: 12.3
A25: 24 | B25: =1*3 -> 3 | C25: BKCT2232-6-ND | D25: CT2232-6 | E25: 4MM BINDING POST - BLUE | F25: MRFS_J4 | G25: 4.1 | H25: 12.3
A26: 25 | B26: =1*3 -> 3 | C26: 3M15450-ND | D26: 2314-6121-TG | E26: CONN HEADER 14POS 2ROW 0.100" PITCH | F26: MRFS_J5 | G26: 1.1 | H26: 3.3
A27: 26 | B27: =4*3 -> 12 | C27: A19470-ND | D27: 640456-3 | E27: CONN HEADER VERT 3POS 0.100" PITCH | F27: MRFS_J6,J8,J9,J10 | G27: 0.148 | H27: 1.776
A28: 27 | B28: =1*3 -> 3 | C28: A19471-ND | D28: 640456-5 | E28: CONN HEADER VERT 5POS 0.100" PITCH | F28: MRFS_J7 | G28: 0.28 | H28: 0.84
A29: 28 | B29: =1*3 -> 3 | C29: 541-1255-1-ND | D29: IHLP6767GZER4R7M01 | E29: FIXED IND 4.7UH 25A 5.11 mOHM | F29: MRFS_L1 | G29: 5.87 | H29: 17.61
A30: 29 | B30: =1*3 -> 3 | C30: SRR1210A-331MCT-ND | D30: SRR1210A-331M | E30: FIXED IND 330UH 1.4A 450 mOHM | F30: MRFS_L2 | G30: 1.33 | H30: 3.99
A31: 30 | B31: =1*3 -> 3 | C31: 445-3830-1-ND | D31: SLF10145T-220M1R9-H | E31: FIXED IND 22UH 1.9A 59.1 mOHM | F31: MRFS_L3 | G31: 1.65 | H31: 4.95
A32: 31 | B32: =8*3 -> 24 | C32: 296-37482-5-ND | D32: CSD19533KCS | E32: MOSFET N-CH 100V 100A TO220 | F32: MRFS_M1,M2,M3,M4,M5,M6,M7,M8 | G32: 1.654 | H32: 39.696
A33: 32 | B33: 10 | C33: RMCF0603JT4K70CT-ND | D33: RMCF0603JT4K70 | E33: RES SMD 4.7K OHM 5% 1/10W 0603 | F33: MRFS_R1,R2 | G33: 0.013 | H33: 0.13
A34: 33 | B34: =10*3 -> 30 | C34: 311-1.00KHRCT-ND | D34: RC0603FR-071KL | E34: RES SMD 1K OHM 1% 1/10W 0603 | F34: MRFS_R17,R18,R19,R20,R21,R49,R53,R56,R59,R62 | G34: 0.015 | H34: 0.45
A35: 34 | B35: 10 | C35: RMCF0603JT2K20CT-ND | D35: RMCF0603JT2K20 | E35: RES SMD 2.2K OHM 5% 1/10W 0603 | F35: MRFS_R5,R16 | G35: 0.013 | H35: 0.13
A36: 35 | B36: =1*3 -> 3 | C36: PNM0805-50KBCT-ND | D36: PNM0805E5002BST5 | E36: RES SMD 50K OHM 0.1% 1/5W 0805 | F36: MRFS_R6 | G36: 2.76 | H36: 8.28
A37: 36 | B37: =1*3 -> 3 | C37: P174KDBCT-ND | D37: ERA-3AEB1743V | E37: RES SMD 174K OHM 0.1% 1/10W 0603 | F37: MRFS_R7 | G37: 0.35 | H37: 1.05
A38: 37 | B38: =8*3 -> 24 | C38: YAG3638CT-ND | D38: AC0603JR-0710RL | E38: RES SMD 10 OHM 5% 1/10W 0603 | F38: MRFS_R8,R9,R39,R40,R41,R42,R43,R44 | G38: 0.02 | H38: 0.48
A39: 38 | B39: =2*3 -> 6 | C39: P10KDBCT-ND | D39: ERA-3AEB103V | E39: RES SMD 10K OHM 0.1% 1/10W 0603 | F39: MRFS_R10,R13 | G39: 0.35 | H39: 2.1
A40: 39 | B40: =10*3 -> 30 | C40: 311-10.0KHRCT-ND | D40: RC0603FR-0710KL | E40: RES SMD 10K OHM 1% 1/10W 0603 | F40: MRFS_R22,R23,R34,R35,R50,R54,R55,R58,R61,R65 | G40: 0.015 | H40: 0.45
A41: 40 | B41: =1*3 -> 3 | C41: 541-3645-1-ND | D41: TNPW06032K67BEEA | E41: RES 2.67K OHM 0.1% 1/8W 0603 | F41: MRFS_R11 | G41: 0.65 | H41: 1.95
A42: 41 | B42: 10 | C42: RMCF0603JT300RCT-ND | D42: RMCF0603JT300R | E42: RES SMD 300 OHM 5% 1/10W 0603 | F42: MRFS_R12,R30,R31 | G42: 0.013 | H42: 0.13
A43: 42 | B43: =1*3 -> 3 | C43: P100KDBCT-ND | D43: ERA-3AEB104V | E43: RES SMD 100K OHM 0.1% 1/10W 0603 | F43: MRFS_R14 | G43: 0.35 | H43: 1.05
A44: 43 | B44: =1*3 -> 3 | C44: P1.8KDBCT-ND | D44: ERA-3AEB182V | E44: RES SMD 1.8K OHM 0.1% 1/10W 0603 | F44: MRFS_R15 | G44: 0.35 | H44: 1.05
A45: 44 | B45: 100 | C45: RMCF0603JT680RCT-ND | D45: RMCF0603JT680R | E45: RES SMD 680 OHM 5% 1/10W 0603 | F45: MRFS_R3,R4,R24,R25,R26,R27,R28,R29,R32,R33,R37,R38,R57,R60,R63,R64,R67,R68,R69 | G45: 0.0051 | H45: 0.51
A46: 45 | B46: 10 | C46: RMCF0603JT1R00CT-ND | D46: RMCF0603JT1R00 | E46: RES SMD 1 OHM 5% 1/10W 0603 | F46: MRFS_R36 | G46: 0.013 | H46: 0.13
A47: 46 | B47: =2*3 -> 6 | C47: CRE2512-FZ-R003E-3CT-ND | D47: CRE2512-FZ-R003E-3 | E47: RES 0.003 OHM 1% 3W 2512 | F47: MRFS_R45,R46 | G47: 0.62 | H47: 3.72
A48: 47 | B48: 10 | C48: YAG3565CT-ND | D48: AC0603FR-0712KL | E48: RES SMD 12K OHM 1% 1/10W 0603 | F48: MRFS_R47,R51 | G48: 0.025 | H48: 0.25
A49: 48 | B49: 10 | C49: P2.40KHCT-ND | D49: ERJ-3EKF2401V | E49: RES SMD 2.4K OHM 1% 1/10W 0603 | F49: MRFS_R48,R52 | G49: 0.057 | H49: 0.57
A50: 49 | B50: =1*3 -> 3 | C50: P120BYCT-ND | D50: ERJ-PA3F1200V | E50: RES SMD 120 OHM 1% 1/4W 0603 | F50: MRFS_R66 | G50: 0.16 | H50: 0.48
A51: 50 | B51: =1*3 -> 3 | C51: CKN9087CT-ND | D51: PTS645SK50SMTR92 LFS | E51: RED SWITCH TACTILE SPST-NO 0.05A 12V | F51: MRFS_SW3 | G51: 0.29 | H51: 0.87
A52: 51 | B52: =2*3 -> 6 | C52: CKN9085CT-ND | D52: PTS645SH50SMTR92 LFS | E52: GRAY SWITCH TACTILE SPST-NO 0.05A 12V | F52: MRFS_SW1,SW2 | G52: 0.21 | H52: 1.26
A53: 52 | B53: =36*3 -> 108 | C53: 36-1033-ND | D53: 1033 | E53: TERM TEST POINT LOOP .093"DIA | F53: MRFS_TP1,TP2,TP3,TP4,TP5,TP6,TP7,TP8,TP9,TP10,TP11,TP12,TP13,TP14,TP15,TP16,TP17,TP18,TP19,TP20,TP21,TP22,TP23,TP24,TP25,TP26,TP27,TP28,TP29,TP30,TP31,TP32,TP33,TP34,TP35,TP36 | G53: 0.1379 | H53: 14.8932
A54: 53 | B54: =1*3 -> 3 | C54: 296-37381-1-ND | D54: LM5060Q1MMX/NOPB | E54: High-Side Gate Driver IC Non-Inverting 10-VSSOP | F54: MRFS_U1 | G54: 2.69 | H54: 8.07
A55: 54 | B55: 3 | C55: 296-21834-5-ND | D55: TL2575HV-05IKV | E55: IC REG BUCK 5V 1A TO220-5 | F55: MRFS_U2 | G55: 3.16 | H55: 9.48
A56: 55 | B56: 3 | C56: LM3940IMPX-3.3/NOPBCT-ND | D56: LM3940IMPX-3.3/NOPB | E56: IC REG LINEAR 3.3V 1A SOT223-4 | F56: MRFS_U3 | G56: 1.65 | H56: 4.95
A57: 56 | B57: 3 | C57: 296-44483-1-ND | D57: TMS320F28035PNQR | E57: IC MCU 32BIT 128KB FLASH 80LQFP | F57: MRFS_U4 | G57: 11.51 | H57: 34.53
A58: 57 | B58: 3 | C58: 296-29433-1-ND | D58: DRV8301DCAR | E58: IC MOTOR CONTROLLER SPI 56HTSSOP | F58: MRFS_U5 | G58: 6.14 | H58: 18.42
A59: 58 | B59: 3 | C59: 620-1722-1-ND | D59: ACS724LLCTR-30AB-T | E59: CURRENT HALL SENSOR BI-DIRECTIONAL 30A AC/DC | F59: MRFS_U6 | G59: 5.77 | H59: 17.31
A60: 59 | B60: 3 | C60: 296-37645-1-ND | D60: OPA2374AIDCNR | E60: IC OPAMP GP 6.5MHZ RRO SOT23-8 | F60: MRFS_U7 | G60: 1.95 | H60: 5.85
A61: 60 | B61: 3 | C61: 296-16915-1-ND | D61: SN74LVC3G17DCTR | E61: IC BUFF TRPL SCHMIT TRIG SM8 | F61: MRFS_U8 | G61: 0.72 | H61: 2.16
A62: 61 | B62: 3 | C62: 296-44856-1-ND | D62: SN65HVD233QDRQ1 | E62: IC TXRX CAN HALF DUPLEX 8SOIC | F62: MRFS_U9 | G62: 3.25 | H62: 9.75
A63: 62 | B63: 3 | C63: 296-24863-1-ND | D63: TRS3232EQPWRQ1 | E63: IC DVR/RCV RS232 MULTICH 16TSSOP | F63: MRFS_U10 | G63: 2.8 | H63: 8.4
A64: 63 | B64: 3 | C64: 535-9046-ND | D64: ABL-20.000MHZ-B2 | E64: CRYSTAL 20.0000MHZ 18PF T/H | F64: MRFS_Y1 | G64: 0.33 | H64: 0.99
A65: 64 | B65: 2 | C65: 296-46954-ND | D65: TMDSEMU110-U | E65: XDS110 JTAG DEBUG PROBE | F65: MRFS_JTAG | G65: 102.8 | H65: 205.6
A66: 65 | B66: 1 | C66: HM1412-ND | D66: 1455Q1601RD | E66: BOX ALUM RED 6.3"L X 4.92"W | F66: MRFS_HOUSING | G66: 28.99 | H66: 28.99

Sheet Sheet1
A1: Index | B1: Quantity | C1: Digi-Key Part Number | D1: Manufacturer Part Number | E1: Description | F1: Customer Reference | G1: Unit Price USD | H1: Extended Price USD | J1: Costs
A2: 1 | B2: 4 | C2: MOUSER PN: 926-LM5060Q1MMX/NOPB | D2: LM5060Q1MMX/NOPB | E2: High-Side Gate Driver IC Non-Inverting 10-VSSOP | F2: MRFS_U1 | G2: 2.91 | H2: =G2*B2 -> 11.64 | J2: =SUM(H:H) -> 67.61 | K2: Subtotal
A3: 2 | B3: 10 | C3: 754-1946-1-ND | D3: APTD1608LSECK/J4-PF | E3: LED OR 2mA 1.8V 0603 | F3: MRFS_D1,D2,D5,D6,D7,D8,D9,D10,D14,D23,D26,D29,D30,D31,D32,D33 | G3: 0.476 | H3: 4.76 | J3: =J2*0.1025 -> 6.930025 | K3: Tax (Est)
A4: 3 | B4: 10 | C4: 36-575-8-ND | D4: 575-8 | E4: JACK NON-INSULATED .350" | F4: MRFS_J2, J3, J4 | G4: 0.653 | H4: 6.53 | J4: =10 -> 10 | K4: Shipping
A5: 4 | B5: 2 | C5: 296-29433-1-ND | D5: DRV8301DCAR | E5: IC MOTOR CONTROLLER SPI 56HTSSOP | F5: MRFS_U5 | G5: 6 | H5: 12 | J5: =SUM(J2:J4) -> 84.540025 | K5: TOTAL
A6: 5 | B6: =2 -> 2 | C6: 296-44483-1-ND | D6: TMS320F28035PNQR | E6: IC MCU 32BIT 128KB FLASH 80LQFP | F6: MRFS_U4 | G6: 11.89 | H6: 23.78
A7: 6 | B7: 4 | C7: 493-15384-ND | D7: UKL1H331KHD | E7: CAP ALUM 330UF 10% 50V RADIAL | F7: MRFS_C15 | G7: 1.01 | H7: 4.04
A8: 7 | B8: 3 | C8: J147-ND | D8: 108-0740-001 | E8: CONN JACK BANANA UNINS PANEL MOU | F8: MOTOR PHASE TERMINALS | G8: 1.62 | H8: 4.86
A10: NOTE: ITEM 1 IS OUT OF STOCK FROM DIGIKEY W/ A 22 WEEK LEAD TIME. WILL NEED TO ORDER FROM MOUSER

Sheet Advanced Circuits
A1: Index | B1: Quantity | C1: Manufacturer Part Number | D1: Description | E1: Customer Reference | F1: Unit Price USD | G1: Extended Price USD | I1: Costs
A2: 1 | B2: 5 | C2: MARS ROVER | D2: REV F PCB | E2: MRFS_PCBF | F2: 103.43 | G2: =F2*B2 -> 517.15 | I2: =SUM(G:G) -> 517.15 | J2: Subtotal
I3: =I2*0.1025 -> 53.007875 | J3: Tax (Est)
I4: =10 -> 10 | J4: Shipping
I5: =SUM(I2:I4) -> 580.157875 | J5: TOTAL
